fUST/lending_fUST_20240128
["ID","MTS","AMOUNT","RATE_DAILY","PERIOD"]
[312864415,1706376632179,-1294.67927842,0.00015289,2]
[312864416,1706376632188,-155.01860223,0.00015289,2]
[312864417,1706376632197,-500.0,0.0001529,2]
[312864418,1706376632207,-222.041207,0.00015829,2]
[312864419,1706376632216,-155.01860223,0.00016723,2]
[312864420,1706376632225,-104.49560973,0.00016807,2]
[312864421,1706376632239,-443.89733341,0.00016807,2]
[312864422,1706376632249,-1026.83362731,0.00016996,2]
[312864423,1706376632258,-36993.50130964,0.00016996,2]
[312864424,1706376632268,-56735.16167538,0.00016997,2]
[312864456,1706376638192,-272.79145972,0.000165,2]
[312864458,1706376638201,-367.51156692,0.00016997,2]
[312864464,1706376638247,-17068.06966572,0.00016997,2]
[312864465,1706376638257,-24900.0,0.00016999,2]
[312864467,1706376638267,-329.74860932,0.00018675,2]
[312864469,1706376638276,-243.28513868,0.00018675,2]
[312864471,1706376638286,-302.12279675,0.00018675,2]
[312864472,1706376638295,-277.91128791,0.00018675,2]
[312864474,1706376638304,-173.82399701,0.00018676,2]
[312864476,1706376638313,-1583.7528565,0.00019,2]
[312864478,1706376638323,-166.590491,0.00019178,2]
[312864480,1706376638332,-155.01860223,0.0002,2]
[312864482,1706376638342,-155.01860223,0.0002,2]
[312864484,1706376638350,-155.01860223,0.0002,2]
[312864486,1706376638359,-679.3029243,0.0002,2]
[312864488,1706376638369,-1199.09633829,0.0002,2]
[312864490,1706376638378,-244.16390159,0.0002,2]
[312864492,1706376638387,-886.65147275,0.00020073,2]
[312864494,1706376638396,-300.0,0.00020075,2]
[312864496,1706376638406,-2086.25337306,0.00020075,2]
[312864498,1706376638415,-310.03255349,0.00021908,2]
[312864500,1706376638424,-213.55190572,0.00021917,2]
[312864502,1706376638433,-166.666666,0.00021918,2]
[312864503,1706376638442,-2036.12411825,0.00022,2]
[312864505,1706376638451,-327.61566675,0.00022,2]
[312864508,1706376638461,-3971.98419525,0.00022,2]
[312864510,1706376638470,-426.38170713,0.00022,2]
[312864512,1706376638480,-2009.31889645,0.00022,2]
[312864513,1706376638489,-6772.26311196,0.00022313,2]
[312864516,1706376638498,-166.666666,0.00022431,2]
[312864518,1706376638508,-166.666666,0.00022944,2]
[312864520,1706376638517,-1416.67721386,0.00023,2]
[312864522,1706376638526,-6009.5245757,0.00023,2]
[312864524,1706376638538,-3938.39722506,0.00023,2]
[312864525,1706376638547,-166.666666,0.00023456,2]
[312864527,1706376638557,-166.666666,0.00023969,2]
[312864529,1706376638568,-4017.99473219,0.00024,2]
[312864531,1706376638577,-166.666666,0.00024482,2]
[312864533,1706376638586,-851.06760342,0.00025,2]
[312864534,1706376638595,-7649.9786433,0.00025,2]
[312864536,1706376638605,-680.67452781,0.00025,2]
[312864538,1706376638614,-4727.98807036,0.00025,2]
[312864540,1706376638624,-1828.18039739,0.00025,2]
[312864541,1706376638634,-290.6944281,0.00027,2]
[312864542,1706376638642,-620.63563312,0.0002728,2]
[312864543,1706376638652,-12820.58,0.00027397,3]
[312864544,1706376638661,-10683.81,0.00027397,3]
[312864545,1706376638669,-8903.18,0.00027397,3]
[312864546,1706376638678,-155.01860223,0.00028,2]
[312864547,1706376638688,-620.03178166,0.00028644,2]
[312864548,1706376638697,-158.26038439,0.00029,2]
[312864549,1706376638706,-1933.42796518,0.00029,2]
[312864550,1706376638715,-7186.942664,0.00029,4]
[312864551,1706376638724,-155.0,0.00029,2]
[312864552,1706376638733,-306.0,0.00029178,2]
[312864553,1706376638742,-151.60370444,0.00029234,2]
[312864554,1706376638751,-153.0,0.00029315,2]
[312864555,1706376638761,-199.3339408,0.00029315,2]
[312864556,1706376638770,-153.0,0.00029315,2]
[312864557,1706376638779,-153.0,0.00029315,2]
[312864558,1706376638789,-212.0814075,0.00029315,2]
[312864559,1706376638798,-153.0,0.00029315,2]
[312864560,1706376638807,-153.0,0.00029315,2]
[312864561,1706376638816,-153.0,0.00029315,2]
[312864562,1706376638825,-153.0,0.00029315,2]
[312864563,1706376638834,-153.0,0.00029315,2]
[312864564,1706376638843,-153.0,0.00029315,2]
[312864565,1706376638852,-153.0,0.00029315,2]
[312864566,1706376638861,-312.5134984,0.00029589,2]
[312864567,1706376638871,-1669.46427328,0.00029887,2]
[312864568,1706376638879,-574.77781384,0.00029888,2]
[312864569,1706376638888,-841.24051252,0.00029888,2]
[312864570,1706376638897,-588.43545532,0.00029888,2]
[312864571,1706376638907,-555.44587219,0.00029888,2]
[312864572,1706376638915,-303.74433034,0.0002989,2]
[312864573,1706376638925,-764.75702273,0.0002989,2]
[312864574,1706376638934,-3194.88866007,0.0002989,2]
[312864575,1706376638942,-195.06700815,0.0002989,2]
[312864576,1706376638951,-155.34661163,0.0002989,2]
[312864577,1706376638960,-1827.7377922,0.0002989,2]
[312864578,1706376638969,-155.07399689,0.0002989,2]
[312864579,1706376638978,-2512.042803,0.00029998,2]
[312864580,1706376638987,-5726.50858255,0.0003,2]
[312864581,1706376638997,-244.44828906,0.0003,4]
[312864582,1706376639007,-688.23100215,0.0003,4]
[312864583,1706376639017,-454.90275515,0.0003,4]
[312864584,1706376639026,-155.01860223,0.0003,4]
[312864585,1706376639035,-195.76432188,0.0003,2]
[312864586,1706376639044,-146331.23431988,0.0003,4]
[312864587,1706376639053,-270.97785001,0.0003,2]
[312864588,1706376639062,-155.01860223,0.0003,4]
[312864589,1706376639070,-689.09430435,0.0003,4]
[312864590,1706376639079,-157.99274934,0.0003,4]
[312864591,1706376639088,-200.82122795,0.0003,4]
[312864592,1706376639097,-373.0,0.0003,2]
[312864593,1706376639106,-5000.0,0.0003005,5]
[312864594,1706376639114,-68942.04215151,0.00030055,4]
[312864595,1706376639123,-5000.0,0.0003006,5]
[312864596,1706376639132,-10243.16442368,0.00030065,2]
[312864597,1706376639141,-620.00158908,0.00030076,2]
[312864598,1706376639150,-5000.0,0.00030077,5]
[312864599,1706376639158,-6683.87982665,0.00030082,2]
[312864600,1706376639167,-5000.0,0.00030086,5]
[312864601,1706376639176,-5000.0,0.00030086,5]
[312864602,1706376639185,-2102.2386204,0.00030092,2]
[312864603,1706376639194,-153.0,0.00030137,2]
[312864604,1706376639203,-164.486678,0.00030137,2]
[312864605,1706376639212,-346.061529,0.00030137,2]
[312864606,1706376639221,-158.508265,0.00030137,2]
[312864607,1706376639230,-155.0,0.0003037,2]
[312864608,1706376639239,-161.43393847,0.00031,4]
[312864609,1706376639248,-1175.45652108,0.00031,7]
[312864610,1706376639258,-346.061529,0.00031115,2]
[312864611,1706376639267,-158.508265,0.00031133,2]
[312864612,1706376639277,-620.00007945,0.0003158,2]
[312864613,1706376639286,-155.0,0.0003174,2]
[312864614,1706376639296,-210.83290293,0.00031979,7]
[312864615,1706376639305,-482.70414907,0.00031979,7]
[312864616,1706376639315,-500.0,0.00031979,7]
[312864617,1706376639323,-500.0,0.00031979,7]
[312864618,1706376639333,-500.0,0.00031979,7]
[312864619,1706376639342,-518.08242383,0.00031979,7]
[312864620,1706376639351,-500.0,0.00031979,7]
[312864621,1706376639361,-500.0,0.00031979,7]
[312864622,1706376639370,-500.0,0.00031979,7]
[312864623,1706376639379,-500.0,0.00031979,7]
[312864624,1706376639389,-499.8,0.00031979,7]
[312864625,1706376639398,-500.0,0.00031979,7]
[312864626,1706376639408,-444.89822299,0.00031979,7]
[312864627,1706376639417,-427.92623433,0.00031979,7]
[312864628,1706376639426,-327.36503084,0.00031979,7]
[312864629,1706376639435,-100352.64712688,0.0003198,4]
[312864630,1706376639447,-59077.69134158,0.0003198,4]
[312864631,1706376639458,-10202.84952288,0.0003198,4]
[312864654,1706376641489,-1887.64989921,0.0003198,4]
[312864704,1706376644918,-5563.91475642,0.0003198,4]
[312864705,1706376644929,-8507.48696359,0.0003198,4]
[312864718,1706376646309,-280.4,0.0003198,4]
[312864719,1706376646320,-747.9339408,0.0003198,4]
[312864728,1706376949173,155.01860223,0.00021997,4]
[312864729,1706377083194,155.01860223,0.00021986,4]
[312864730,1706377162703,155.01860223,0.00021984,4]
[312864731,1706377162883,151.40784964,1e-08,2]
[312864732,1706377245708,155.01860223,0.00021917,4]
[312864734,1706377393765,155.01860223,0.0001679,3]
[312864735,1706377483243,155.01860223,0.00016784,3]
[312864744,1706377556363,155.01860223,0.00016778,3]
[312864798,1706377637403,155.01860223,0.00016773,3]
[312864817,1706377710774,155.01860223,0.00016769,3]
[312864824,1706377783932,155.01860223,0.00016764,3]
[312864837,1706377832331,-608.60582345,0.00015639,2]
[312864850,1706377832435,-155.01860223,0.0001564,2]
[312864853,1706377832445,-155.01860223,0.00015641,2]
[312864855,1706377832454,-272.79145972,0.00016762,2]
[312864857,1706377832463,-997.69092193,0.00016763,2]
[312864859,1706377832472,-155.01860223,0.00016764,2]
[312864861,1706377832481,-1060.68600045,0.00016791,2]
[312864863,1706377832491,-366.25244123,0.00016799,2]
[312864865,1706377832500,-436.0952887,0.00016807,2]
[312864867,1706377832509,-484.85135055,0.00016807,2]
[312864868,1706377832518,-200.0,0.00017,2]
[312864870,1706377832528,-471.05101678,0.00017379,2]
[312864871,1706377832537,-2075.77672297,0.00017379,2]
[312864872,1706377832546,-24729.24649562,0.00017381,2]
[312864873,1706377832559,-170.75350438,0.00017381,2]
[312864874,1706377832568,-200.0,0.00018,2]
[312864875,1706377832577,-200.0,0.00019,2]
[312864876,1706377832586,-1583.7528565,0.00019,2]
[312864877,1706377832596,-10954.8,0.00019845,3]
[312864878,1706377832604,-9129.0,0.00019845,3]
[312864879,1706377832613,-1243.37082882,0.00019853,2]
[312864880,1706377832622,-20915.89787581,0.00019854,2]
[312864881,1706377832631,-21701.07731623,0.00019855,2]
[312864882,1706377832639,-168.76336281,0.000199,2]
[312864883,1706377832648,-155.01860223,0.0002,2]
[312864884,1706377832657,-200.0,0.0002,2]
[312864885,1706377832665,-2009.31889645,0.0002,2]
[312864886,1706377832674,-679.3029243,0.0002,2]
[312864887,1706377832683,-1199.09633829,0.0002,2]
[312864888,1706377832691,-155.01860223,0.0002,2]
[312864889,1706377832701,-155.01860223,0.0002,2]
[312864890,1706377832710,-200.0,0.00021,2]
[312864891,1706377832718,-151.53182002,0.00021873,2]
[312864892,1706377832728,-300.0,0.00021917,2]
[312864893,1706377832737,-2086.25337306,0.00021917,2]
[312864894,1706377832746,-166.666666,0.00021918,2]
[312864895,1706377832755,-2036.12411825,0.00022,2]
[312864896,1706377832764,-3971.98419525,0.00022,2]
[312864897,1706377832776,-200.0,0.00022,2]
[312864898,1706377832785,-426.38170713,0.00022,2]
[312864899,1706377832794,-327.61566675,0.00022,2]
[312864900,1706377832803,-166.666666,0.00022431,2]
[312864901,1706377832813,-166.666666,0.00022944,2]
[312864902,1706377832822,-1416.67721386,0.00023,2]
[312864903,1706377832831,-200.0,0.00023,2]
[312864904,1706377832840,-2340.77877073,0.00023,2]
[312864905,1706377832852,-6973.25119121,0.00023,2]
[312864966,1706377838467,-633.89183882,0.00023,2]
[312864968,1706377838477,-166.666666,0.00023456,2]
[312864970,1706377838487,-166.666666,0.00023969,2]
[312864972,1706377838496,-200.0,0.00024,2]
[312864974,1706377838506,-4017.99473219,0.00024,2]
[312864975,1706377838514,-166.666666,0.00024482,2]
[312864977,1706377838524,-1480.85994301,0.00024498,2]
[312864979,1706377838533,-200.0,0.00025,2]
[312864981,1706377838543,-4727.98807036,0.00025,2]
[312864983,1706377838553,-851.06760342,0.00025,2]
[312864985,1706377838562,-7649.9786433,0.00025,2]
[312864987,1706377838571,-200.0,0.00026,2]
[312864988,1706377838581,-155.41501994,0.00026271,2]
[312864990,1706377838590,-526.92824298,0.0002628,2]
[312864992,1706377838599,-825.86473384,0.00026282,2]
[312864993,1706377838609,-200.0,0.00027,2]
[312864994,1706377838618,-167.131822,0.00027941,2]
[312864995,1706377838627,-200.0,0.00028,2]
[312864996,1706377838637,-168.76336281,0.00028143,4]
[312864997,1706377838647,-280.9662238,0.00029,2]
[312864998,1706377838656,-254912.08964427,0.000299,2]
[312864999,1706377838665,-190.08273826,0.0003,3]
[312865000,1706377838675,-5726.50858255,0.0003,2]
[312865001,1706377838684,-244.44828906,0.0003,4]
[312865002,1706377838694,-155.01860223,0.0003,4]
[312865003,1706377838704,-146331.23431988,0.0003,4]
[312865004,1706377838713,-155.01860223,0.0003,4]
[312865005,1706377838723,-689.09430435,0.0003,4]
[312865006,1706377838732,-295.0,0.0003,2]
[312865007,1706377838742,-1860.0799141,0.00030107,4]
[312865008,1706377838751,-5000.0,0.00030108,5]
[312865009,1706377838761,-832.09585451,0.00030108,2]
[312865010,1706377838771,-5000.0,0.00030108,5]
[312865011,1706377838781,-20057.9844371,0.00030113,3]
[312865012,1706377838790,-2331.44552439,0.00030113,2]
[312865013,1706377838800,-158.508265,0.00030137,2]
[312865014,1706377838810,-299.919992,0.00030137,2]
[312865015,1706377838909,-558.754,0.00030137,11]
[312865016,1706377838919,-290.38230678,0.00030379,4]
[312865017,1706377838928,-161.43393847,0.00031,4]
[312865018,1706377838939,-299.919992,0.00031115,2]
[312865019,1706377838949,-158.508265,0.00031355,2]
[312865020,1706377838958,-1958.72935728,0.00031946,4]
[312865021,1706377838972,-155.20690715,0.00031977,4]
[312865022,1706377838982,-341.5834619,0.00031978,4]
[312865023,1706377838991,-379.57437706,0.00031979,4]
[312865024,1706377839001,-2520.9847546,0.00031979,4]
[312865025,1706377839010,-12540.18079109,0.0003198,4]
[312865026,1706377839020,-687.5667328,0.0003198,4]
[312865027,1706377839029,-4292.55674097,0.0003198,4]
[312865028,1706377839040,-454.90275515,0.0003198,4]
[312865029,1706377839049,-1027.50463707,0.0003198,2]
[312865030,1706377839058,-408.1017874,0.0003198,4]
[312865031,1706377839067,-155.01860223,0.0003198,4]
[312865032,1706377839076,-155.01860223,0.00032,4]
[312865033,1706377839085,-155.01860223,0.00032,4]
[312865034,1706377839094,-299.919992,0.00032094,2]
[312865035,1706377839103,-158.508265,0.00032572,2]
[312865036,1706377839113,-157.18514806,0.00032997,4]
[312865037,1706377839122,-1744.43311062,0.00032997,4]
[312865038,1706377839132,-155.03083291,0.00032997,4]
[312865039,1706377839141,-500.0,0.00032997,7]
[312865040,1706377839150,-190.40084948,0.00032997,7]
[312865041,1706377839159,-500.0,0.00032997,7]
[312865042,1706377839168,-500.0,0.00032997,7]
[312865043,1706377839177,-500.0,0.00032997,7]
[312865044,1706377839186,-500.0,0.00032997,7]
[312865045,1706377839195,-500.0,0.00032997,7]
[312865046,1706377839205,-500.0,0.00032997,7]
[312865047,1706377839214,-500.0,0.00032997,7]
[312865048,1706377839223,-500.0,0.00032997,7]
[312865049,1706377839233,-500.0,0.00032997,7]
[312865050,1706377839242,-500.0,0.00032997,7]
[312865051,1706377839251,-500.0,0.00032997,7]
[312865052,1706377839261,-500.0,0.00032997,7]
[312865053,1706377839270,-500.0,0.00032997,7]
[312865054,1706377839279,-500.0,0.00032997,7]
[312865055,1706377839288,-500.0,0.00032997,7]
[312865056,1706377839298,-500.0,0.00032997,7]
[312865057,1706377839307,-500.0,0.00032997,7]
[312865058,1706377839316,-500.0,0.00032997,7]
[312865059,1706377839325,-500.0,0.00032997,7]
[312865060,1706377839335,-193.38,0.00032997,7]
[312865061,1706377839344,-500.0,0.00032997,7]
[312865062,1706377839353,-500.0,0.00032997,7]
[312865063,1706377839362,-500.0,0.00032997,7]
[312865064,1706377839371,-500.0,0.00032997,7]
[312865065,1706377839381,-500.0,0.00032997,7]
[312865066,1706377839390,-500.0,0.00032997,7]
[312865067,1706377839399,-500.0,0.00032997,7]
[312865068,1706377839408,-500.0,0.00032997,7]
[312865069,1706377839417,-318.67560624,0.00032997,7]
[312865070,1706377839428,-500.0,0.00032997,7]
[312865071,1706377839437,-400.0,0.00032997,7]
[312865072,1706377839446,-500.0,0.00032997,7]
[312865073,1706377839455,-500.0,0.00032997,7]
[312865074,1706377839465,-154.02178062,0.00032997,7]
[312865075,1706377839473,-500.0,0.00032997,7]
[312865076,1706377839483,-500.0,0.00032997,7]
[312865077,1706377839492,-500.0,0.00032997,7]
[312865078,1706377839501,-500.0,0.00032997,7]
[312865079,1706377839510,-500.0,0.00032997,7]
[312865080,1706377839519,-500.0,0.00032997,7]
[312865081,1706377839528,-500.0,0.00032997,7]
[312865082,1706377839539,-500.0,0.00032997,7]
[312865083,1706377839549,-500.0,0.00032997,7]
[312865084,1706377839557,-500.0,0.00032997,7]
[312865085,1706377839566,-692.18191476,0.00032998,4]
[312865086,1706377839575,-239.76670397,0.00032998,4]
[312865087,1706377839584,-195.57103754,0.00032998,2]
[312865088,1706377839593,-2177.43358182,0.00032998,4]
[312865089,1706377839602,-387.14243567,0.00032998,4]
[312865090,1706377839610,-403.91119802,0.00032998,4]
[312865091,1706377839620,-440.74121936,0.00032998,4]
[312865092,1706377839630,-413.59023852,0.00032999,4]
[312865093,1706377839639,-2122.91226307,0.00032999,4]
[312865094,1706377839648,-257.42358784,0.00032999,4]
[312865095,1706377839657,-22355.32655684,0.00033,5]
[312865096,1706377839666,-228.59183817,0.00033,2]
[312865097,1706377839675,-154.0,0.00033,2]
[312865098,1706377839685,-295.0,0.00033,2]
[312865099,1706377839694,-2309.39885449,0.00033056,2]
[312865100,1706377839704,-299.919992,0.00033072,2]
[312865101,1706377839713,-620.00000397,0.00033159,2]
[312865102,1706377839722,-667.58528059,0.00033419,4]
[312865103,1706377839731,-64410.67074054,0.0003342,2]
[312865104,1706377839744,-10202.84952288,0.0003342,2]
[312865304,1706377846496,-440.17460025,0.00033418,4]
[312865305,1706377846505,-155.01860223,0.00033418,5]
[312865306,1706377846514,-817.70456125,0.00033419,4]
[312865307,1706377846523,-366.51443725,0.00033419,4]
[312865308,1706377846532,-3680.05646956,0.0003342,2]
[312865309,1706377846541,-158.508265,0.0003379,2]
[312865310,1706377846550,-2739.2773222,0.00033956,7]
[312865434,1706378555198,558.75,0.0003,30]
[312865556,1706379033731,-453.1775686,0.00017694,2]
[312865557,1706379033740,-155.01860223,0.00017694,3]
[312865558,1706379033749,-155.01860223,0.00017695,2]
[312865559,1706379033758,-1254.50882971,0.00017696,2]
[312865560,1706379033767,-904.37484693,0.00017697,2]
[312865561,1706379033776,-201.08800032,0.00017697,2]
[312865562,1706379033788,-1541.21613654,0.00017697,2]
[312865563,1706379033797,-608.60582345,0.00017697,2]
[312865564,1706379033806,-1855.89235868,0.00017698,2]
[312865565,1706379033815,-2040.63936826,0.00017699,2]
[312865566,1706379033824,-471.05101678,0.00017708,2]
[312865567,1706379033833,-2075.77672297,0.00017708,2]
[312865569,1706379033842,-170.605994,0.00017708,2]
[312865570,1706379033851,-262.54949426,0.00017709,2]
[312865571,1706379033860,-24900.0,0.0001771,2]
[312865572,1706379033869,-248.908357,0.00017927,2]
[312865573,1706379033878,-1480.85994301,0.00018772,2]
[312865574,1706379033886,-1583.7528565,0.00019,2]
[312865575,1706379033895,-168.76336281,0.00019055,2]
[312865576,1706379033905,-286.91730726,0.00019059,2]
[312865577,1706379033913,-2105.3133158,0.00019153,2]
[312865578,1706379033924,-155.20715797,0.00019154,2]
[312865579,1706379033933,-197.7452185,0.00019155,2]
[312865580,1706379033942,-581.42890001,0.00019155,2]
[312865581,1706379033951,-283.65055231,0.00019155,2]
[312865582,1706379033959,-194.68732422,0.00019155,2]
[312865583,1706379033968,-2710.54181066,0.00019155,2]
[312865584,1706379033977,-12421.30914576,0.00019155,2]
[312865585,1706379033988,-627.55151535,0.00019155,2]
[312865586,1706379034000,-3053.93377602,0.00019155,2]
[312865594,1706379038674,-368.01622336,0.00019155,2]
[312865595,1706379038683,-329.19745495,0.00019155,2]
[312865596,1706379038692,-155.61679895,0.00019156,2]
[312865597,1706379038701,-2640.04761274,0.00019156,2]
[312865598,1706379038713,-7413.71291117,0.00019156,2]
[312865599,1706379038722,-167.068647,0.00019178,2]
[312865600,1706379038731,-166.88013,0.00019178,2]
[312865601,1706379038741,-289.99958772,0.00019899,2]
[312865602,1706379038750,-1866.64853108,0.0002,2]
[312865603,1706379038759,-679.3029243,0.0002,2]
[312865604,1706379038768,-155.01860223,0.0002,2]
[312865605,1706379038777,-155.01860223,0.0002,2]
[312865606,1706379038786,-1199.09633829,0.0002,2]
[312865607,1706379038796,-2009.31889645,0.0002,2]
[312865608,1706379038805,-156.28562946,0.0002,2]
[312865609,1706379038814,-259.07239837,0.0002,2]
[312865610,1706379038823,-244.16390159,0.0002,2]
[312865611,1706379038832,-200.0,0.0002,2]
[312865612,1706379038841,-168.99927393,0.0002,2]
[312865613,1706379038850,-155.25655737,0.00020997,2]
[312865614,1706379038860,-3238.32135489,0.00020997,2]
[312865615,1706379038869,-178.68787954,0.00020997,2]
[312865616,1706379038878,-526.92824298,0.00020997,2]
[312865617,1706379038887,-155.41501994,0.00020997,2]
[312865618,1706379038896,-825.86473384,0.00020997,2]
[312865619,1706379038905,-19711.78619942,0.00020999,2]
[312865620,1706379038914,-500.0,0.00021917,2]
[312865621,1706379038924,-500.0,0.00021917,2]
[312865622,1706379038933,-500.0,0.00021917,2]
[312865623,1706379038942,-500.0,0.00021917,2]
[312865624,1706379038951,-500.0,0.00021917,2]
[312865625,1706379038959,-500.0,0.00021917,2]
[312865626,1706379038969,-619.87643609,0.00021917,2]
[312865627,1706379038978,-166.666666,0.00021918,2]
[312865628,1706379038986,-2036.12411825,0.00022,2]
[312865629,1706379038995,-426.38170713,0.00022,2]
[312865630,1706379039005,-327.61566675,0.00022,2]
[312865631,1706379039014,-3971.98419525,0.00022,2]
[312865632,1706379039023,-164.09330822,0.00022,2]
[312865633,1706379039032,-166.666666,0.00022431,2]
[312865634,1706379039041,-166.666666,0.00022944,2]
[312865635,1706379039050,-9947.92180076,0.00023,2]
[312865636,1706379039059,-1416.67721386,0.00023,2]
[312865637,1706379039069,-166.666666,0.00023456,2]
[312865638,1706379039078,-166.666666,0.00023969,2]
[312865639,1706379039087,-4017.99473219,0.00024,2]
[312865640,1706379039096,-166.666666,0.00024482,2]
[312865641,1706379039105,-380.0,0.00024658,2]
[312865642,1706379039115,-155.75566436,0.000249,2]
[312865643,1706379039124,-498.88477678,0.0002496,5]
[312865644,1706379039133,-4727.98807036,0.00025,2]
[312865645,1706379039142,-7649.9786433,0.00025,2]
[312865646,1706379039151,-851.06760342,0.00025,2]
[312865647,1706379039160,-680.67452781,0.00025,2]
[312865648,1706379039169,-260.27250039,0.00025,2]
[312865649,1706379039178,-1828.18039739,0.00025,2]
[312865650,1706379039187,-194.9590979,0.00025479,2]
[312865651,1706379039196,-155.75566433,0.00026429,2]
[312865652,1706379039206,-155.10075661,0.00026818,2]
[312865653,1706379039215,-290.6944281,0.00027,2]
[312865654,1706379039224,-26007.19,0.00027397,3]
[312865655,1706379039233,-21672.66,0.00027397,3]
[312865656,1706379039242,-401.86775842,0.000279,2]
[312865657,1706379039251,-155.75566433,0.00027958,2]
[312865658,1706379039261,-556.2457431,0.00028,2]
[312865659,1706379039270,-159.42971699,0.0002828,2]
[312865660,1706379039279,-1933.42796518,0.00029,2]
[312865661,1706379039288,-310.03720446,0.00029,2]
[312865662,1706379039297,-1000.0,0.00029,2]
[312865663,1706379039372,-175.48032034,0.00029,2]
[312865664,1706379039393,-398.3444231,0.00029315,2]
[312865665,1706379039402,-153.0,0.00029315,2]
[312865666,1706379039412,-306.0,0.00029315,2]
[312865667,1706379039421,-153.0,0.00029315,2]
[312865668,1706379039430,-153.0,0.00029315,2]
[312865669,1706379039442,-307.5089909,0.00029315,2]
[312865670,1706379039451,-398.7755177,0.00029315,2]
[312865671,1706379039460,-155.75566433,0.00029486,2]
[312865672,1706379039469,-2520.9847546,0.0002949,2]
[312865673,1706379039479,-257.42358784,0.00029788,2]
[312865674,1706379039488,-155.03083291,0.00029788,2]
[312865675,1706379039499,-403.91119802,0.00029788,2]
[312865676,1706379039509,-341.5834619,0.00029788,2]
[312865677,1706379039518,-157.18514806,0.00029788,2]
[312865678,1706379039529,-2122.91226307,0.00029798,2]
[312865679,1706379039538,-413.59023852,0.00029798,2]
[312865680,1706379039548,-155.20690715,0.00029798,2]
[312865681,1706379039558,-379.57437706,0.00029798,2]
[312865682,1706379039568,-239.76670397,0.00029798,2]
[312865683,1706379039577,-190.08273826,0.000298,3]
[312865684,1706379039586,-276000.0,0.000298,2]
[312865685,1706379039595,-873.61603269,0.00029881,2]
[312865686,1706379039605,-244.44828906,0.0003,4]
[312865687,1706379039614,-4772.09048546,0.0003,2]
[312865688,1706379039623,-16484.37625079,0.0003,4]
[312865689,1706379039633,-689.09430435,0.0003,4]
[312865690,1706379039642,-155.01860223,0.0003,4]
[312865691,1706379039651,-195.57103754,0.0003,2]
[312865692,1706379039660,-632.137403,0.0003,2]
[312865693,1706379039669,-4577.70352548,0.0003,3]
[312865694,1706379039678,-2322.63899866,0.0003,4]
[312865695,1706379039688,-4292.55674097,0.0003,4]
[312865696,1706379039696,-408.1017874,0.0003,4]
[312865697,1706379039705,-1027.50463707,0.0003,2]
[312865698,1706379039716,-300.0,0.0003,4]
[312865699,1706379039727,-295.0,0.0003,2]
[312865700,1706379039736,-1628.99745431,0.00030113,2]
[312865701,1706379039746,-5000.0,0.00030125,5]
[312865702,1706379039756,-23255.0680712,0.00030125,3]
[312865703,1706379039766,-5000.0,0.00030125,5]
[312865704,1706379039778,-28061.08948125,0.00030125,4]
[312865705,1706379039787,-11167.99295269,0.0003013,4]
[312865706,1706379039796,-5000.0,0.0003013,5]
[312865707,1706379039805,-2209.80512047,0.0003013,2]
[312865708,1706379039814,-158.508265,0.00030137,2]
[312865709,1706379039824,-299.919992,0.00030137,2]
[312865710,1706379039832,-500.0,0.00030999,2]
[312865711,1706379039842,-500.0,0.00030999,2]
[312865712,1706379039851,-500.0,0.00030999,2]
[312865713,1706379039860,-500.0,0.00030999,2]
[312865714,1706379039869,-190.40084948,0.00030999,2]
[312865715,1706379039878,-500.0,0.00030999,2]
[312865716,1706379039887,-500.0,0.00030999,2]
[312865717,1706379039896,-500.0,0.00030999,2]
[312865718,1706379039906,-500.0,0.00030999,2]
[312865719,1706379039915,-500.0,0.00030999,2]
[312865720,1706379039925,-500.0,0.00030999,2]
[312865721,1706379039934,-500.0,0.00030999,2]